[Event "Titled Tuesday Blitz May 03 Early 2022"]
[White "Lazavik, Denis"]
[Black "Visakh N R"]
[WhiteFideId "13515110"]
[BlackFideId "25012223"]
[WhiteElo "2437"]
[BlackElo "2448"]
[Result "1/2-1/2"]
[Round "11"]
[TimeControl "180+1"]
[Date "2022.05.03"]
[WhiteClock "0:00:05"]
[BlackClock "0:00:18"]

1. d4 {[%clk 0:03:00]}  Nf6 {[%clk 0:02:59]} 2. c4 {[%clk 0:03:00]}  e6 {[%clk 0:02:58]} 3. Nf3 {[%clk 0:03:01]}  d5 {[%clk 0:02:56]} 4. Nc3 {[%clk 0:03:01]}  Be7 {[%clk 0:02:53]} 5. Bg5 {[%clk 0:03:00]}  h6 {[%clk 0:02:53]} 6. Bh4 {[%clk 0:03:00]}  O-O {[%clk 0:02:53]} 7. e3 {[%clk 0:03:00]}  Ne4 {[%clk 0:02:53]} 8. Bxe7 {[%clk 0:02:57]}  Qxe7 {[%clk 0:02:54]} 9. Rc1 {[%clk 0:02:51]}  c6 {[%clk 0:02:52]} 10. Be2 {[%clk 0:02:46]}  Nd7 {[%clk 0:02:48]} 11. Qc2 {[%clk 0:02:46]}  Nxc3 {[%clk 0:02:47]} 12. Qxc3 {[%clk 0:02:46]}  Re8 {[%clk 0:02:42]} 13. O-O {[%clk 0:02:46]}  dxc4 {[%clk 0:02:43]} 14. Qxc4 {[%clk 0:02:46]}  e5 {[%clk 0:02:43]} 15. Rfd1 {[%clk 0:02:45]}  e4 {[%clk 0:02:36]} 16. Nd2 {[%clk 0:02:44]}  Nf6 {[%clk 0:02:37]} 17. Qc5 {[%clk 0:02:43]}  Bg4 {[%clk 0:02:25]} 18. Bxg4 {[%clk 0:02:34]}  Nxg4 {[%clk 0:02:26]} 19. Qxe7 {[%clk 0:02:34]}  Rxe7 {[%clk 0:02:26]} 20. h3 {[%clk 0:02:33]}  Nf6 {[%clk 0:02:26]} 21. a3 {[%clk 0:02:27]}  Nd5 {[%clk 0:02:26]} 22. Rc5 {[%clk 0:02:19]}  f5 {[%clk 0:02:22]} 23. b4 {[%clk 0:02:15]}  a6 {[%clk 0:02:21]} 24. Rb1 {[%clk 0:02:10]}  Rf8 {[%clk 0:02:20]} 25. a4 {[%clk 0:02:04]}  f4 {[%clk 0:02:20]} 26. Rb3 {[%clk 0:02:02]}  fxe3 {[%clk 0:02:01]} 27. fxe3 {[%clk 0:02:02]}  Ref7 {[%clk 0:02:01]} 28. b5 {[%clk 0:01:52]}  axb5 {[%clk 0:02:00]} 29. axb5 {[%clk 0:01:52]}  Rf2 {[%clk 0:01:56]} 30. Nxe4 {[%clk 0:01:34]}  Re2 {[%clk 0:01:56]} 31. Ng3 {[%clk 0:00:50]}  Re1+ {[%clk 0:01:52]} 32. Kh2 {[%clk 0:00:50]}  Nxe3 {[%clk 0:01:52]} 33. bxc6 {[%clk 0:00:24]}  bxc6 {[%clk 0:01:50]} 34. Rcc3 {[%clk 0:00:18]}  Nd5 {[%clk 0:01:27]} 35. Rxc6 {[%clk 0:00:18]}  Rf2 {[%clk 0:01:26]} 36. Nh5 {[%clk 0:00:12]}  Ne3 {[%clk 0:01:21]} 37. Rg6 {[%clk 0:00:08]}  Nf1+ {[%clk 0:01:17]} 38. Kg1 {[%clk 0:00:08]}  Rf7 {[%clk 0:01:17]} 39. Rb8+ {[%clk 0:00:05]}  Kh7 {[%clk 0:01:17]} 40. Rxg7+ {[%clk 0:00:05]}  Rxg7 {[%clk 0:01:17]} 41. Nxg7 {[%clk 0:00:05]}  Kxg7 {[%clk 0:01:16]} 42. Kf2 {[%clk 0:00:06]}  Ra1 {[%clk 0:01:14]} 43. Rb2 {[%clk 0:00:05]}  Kf6 {[%clk 0:01:08]} 44. Rb6+ {[%clk 0:00:04]}  Kg5 {[%clk 0:01:03]} 45. Rb2 {[%clk 0:00:04]}  h5 {[%clk 0:01:01]} 46. g3 {[%clk 0:00:04]}  Kf5 {[%clk 0:00:55]} 47. Rb5+ {[%clk 0:00:04]}  Ke4 {[%clk 0:00:50]} 48. Rxh5 {[%clk 0:00:04]}  Nd2 {[%clk 0:00:49]} 49. Rh4+ {[%clk 0:00:04]}  Kd5 {[%clk 0:00:49]} 50. Rf4 {[%clk 0:00:04]}  Ne4+ {[%clk 0:00:49]} 51. Kf3 {[%clk 0:00:04]}  Ra3+ {[%clk 0:00:49]} 52. Kg2 {[%clk 0:00:04]}  Kxd4 {[%clk 0:00:47]} 53. Rf3 {[%clk 0:00:04]}  Ra2+ {[%clk 0:00:47]} 54. Kg1 {[%clk 0:00:04]}  Ng5 {[%clk 0:00:47]} 55. Rb3 {[%clk 0:00:04]}  Ke4 {[%clk 0:00:46]} 56. Kf1 {[%clk 0:00:04]}  Nxh3 {[%clk 0:00:43]} 57. Ke1 {[%clk 0:00:04]}  Ng5 {[%clk 0:00:43]} 58. Kd1 {[%clk 0:00:04]}  Nf3 {[%clk 0:00:43]} 59. Rb8 {[%clk 0:00:04]}  Nd4 {[%clk 0:00:43]} 60. Re8+ {[%clk 0:00:03]}  Kd3 {[%clk 0:00:44]} 61. Ke1 {[%clk 0:00:04]}  Rb2 {[%clk 0:00:36]} 62. g4 {[%clk 0:00:04]}  Rg2 {[%clk 0:00:33]} 63. Kf1 {[%clk 0:00:05]}  Ra2 {[%clk 0:00:33]} 64. g5 {[%clk 0:00:05]}  Ra6 {[%clk 0:00:29]} 65. Kf2 {[%clk 0:00:04]}  Rg6 {[%clk 0:00:29]} 66. Re5 {[%clk 0:00:05]}  Ne6 {[%clk 0:00:28]} 67. Ra5 {[%clk 0:00:03]}  Ke4 {[%clk 0:00:27]} 68. Ra4+ {[%clk 0:00:03]}  Kf5 {[%clk 0:00:27]} 69. Ra5+ {[%clk 0:00:04]}  Kg4 {[%clk 0:00:27]} 70. Ra4+ {[%clk 0:00:05]}  Nf4 {[%clk 0:00:27]} 71. Ke3 {[%clk 0:00:05]}  Re6+ {[%clk 0:00:18]} 72. Re4 {[%clk 0:00:05]}  Kxg5 {[%clk 0:00:17]} 73. Rxe6 {[%clk 0:00:05]}  Nxe6 {[%clk 0:00:18]} 1/2-1/2


[Site "https://www.chess.com"]

[Event "Titled Tuesday Blitz May 03 Early 2022"]
[White "Legenia, Artem"]
[Black "Sanchez, Robert"]
[WhiteFideId "14136945"]
[BlackFideId "2034360"]
[WhiteElo "1936"]
[BlackElo "2427"]
[Result "0-1"]
[Round "11"]
[TimeControl "180+1"]
[Date "2022.05.03"]
[WhiteClock "0:01:29"]
[BlackClock "0:01:08"]

1. d4 {[%clk 0:03:00]}  d5 {[%clk 0:02:58]} 2. Nf3 {[%clk 0:02:48]}  c6 {[%clk 0:02:57]} 3. c3 {[%clk 0:02:46]}  Nf6 {[%clk 0:02:57]} 4. Bf4 {[%clk 0:02:46]}  Bf5 {[%clk 0:02:57]} 5. e3 {[%clk 0:02:45]}  e6 {[%clk 0:02:57]} 6. h3 {[%clk 0:02:46]}  Nbd7 {[%clk 0:02:57]} 7. Bd3 {[%clk 0:02:45]}  Be7 {[%clk 0:02:57]} 8. O-O {[%clk 0:02:45]}  O-O {[%clk 0:02:57]} 9. Bxf5 {[%clk 0:02:40]}  exf5 {[%clk 0:02:57]} 10. Nbd2 {[%clk 0:02:40]}  Ne4 {[%clk 0:02:56]} 11. Ne5 {[%clk 0:02:40]}  Nxe5 {[%clk 0:02:53]} 12. Bxe5 {[%clk 0:02:40]}  Qb6 {[%clk 0:02:43]} 13. Nxe4 {[%clk 0:02:36]}  fxe4 {[%clk 0:02:42]} 14. Qb3 {[%clk 0:02:35]}  Qa6 {[%clk 0:02:38]} 15. Rac1 {[%clk 0:02:33]}  b5 {[%clk 0:02:36]} 16. a3 {[%clk 0:02:25]}  f5 {[%clk 0:02:34]} 17. Ra1 {[%clk 0:02:20]}  Bf6 {[%clk 0:02:33]} 18. Bxf6 {[%clk 0:02:20]}  Rxf6 {[%clk 0:02:33]} 19. a4 {[%clk 0:02:20]}  bxa4 {[%clk 0:02:03]} 20. Rxa4 {[%clk 0:02:13]}  Qe2 {[%clk 0:02:00]} 21. c4 {[%clk 0:02:10]}  f4 {[%clk 0:01:57]} 22. cxd5 {[%clk 0:02:07]}  f3 {[%clk 0:01:54]} 23. dxc6+ {[%clk 0:02:07]}  Kh8 {[%clk 0:01:54]} 24. g3 {[%clk 0:02:04]}  Rg6 {[%clk 0:01:48]} 25. g4 {[%clk 0:01:54]}  h5 {[%clk 0:01:48]} 26. c7 {[%clk 0:01:49]}  hxg4 {[%clk 0:01:42]} 27. Qb8+ {[%clk 0:01:49]}  Kh7 {[%clk 0:01:19]} 28. c8=Q {[%clk 0:01:48]}  gxh3+ {[%clk 0:01:18]} 29. Kh2 {[%clk 0:01:47]}  Rxb8 {[%clk 0:01:16]} 30. Qxb8 {[%clk 0:01:29]}  Qxf1 {[%clk 0:01:08]} 0-1


[Site "https://www.chess.com"]

[Event "Titled Tuesday Blitz May 03 Early 2022"]
[White "Lehtosaari, Mauri"]
[Black "Kanyamarala, Trisha"]
[WhiteFideId "501999"]
[BlackFideId "45004722"]
[WhiteElo "2514"]
[BlackElo "2079"]
[Result "0-1"]
[Round "11"]
[TimeControl "180+1"]
[Date "2022.05.03"]
[WhiteClock "0:00:07"]
[BlackClock "0:00:08"]

1. d4 {[%clk 0:03:00]}  Nf6 {[%clk 0:02:59]} 2. Nf3 {[%clk 0:03:01]}  d5 {[%clk 0:02:58]} 3. Bg5 {[%clk 0:02:59]}  e6 {[%clk 0:02:56]} 4. Nbd2 {[%clk 0:02:59]}  Nbd7 {[%clk 0:02:54]} 5. e3 {[%clk 0:02:59]}  Be7 {[%clk 0:02:54]} 6. Bd3 {[%clk 0:02:59]}  c5 {[%clk 0:02:54]} 7. c3 {[%clk 0:03:00]}  O-O {[%clk 0:02:53]} 8. O-O {[%clk 0:02:58]}  Qc7 {[%clk 0:02:54]} 9. Rc1 {[%clk 0:02:51]}  Bd6 {[%clk 0:02:43]} 10. e4 {[%clk 0:02:46]}  dxe4 {[%clk 0:02:42]} 11. Nxe4 {[%clk 0:02:44]}  Nxe4 {[%clk 0:02:42]} 12. Bxe4 {[%clk 0:02:45]}  Bf4 {[%clk 0:02:41]} 13. Rc2 {[%clk 0:02:36]}  Bxg5 {[%clk 0:02:40]} 14. Nxg5 {[%clk 0:02:37]}  Nf6 {[%clk 0:02:36]} 15. Bd3 {[%clk 0:02:26]}  Rd8 {[%clk 0:02:32]} 16. Qf3 {[%clk 0:01:45]}  Bd7 {[%clk 0:02:11]} 17. Bxh7+ {[%clk 0:01:29]}  Kf8 {[%clk 0:02:10]} 18. Be4 {[%clk 0:01:23]}  Bc6 {[%clk 0:02:05]} 19. Bxc6 {[%clk 0:01:20]}  Qxc6 {[%clk 0:02:06]} 20. Qxc6 {[%clk 0:01:12]}  bxc6 {[%clk 0:02:07]} 21. dxc5 {[%clk 0:01:13]}  Rd5 {[%clk 0:02:05]} 22. Nf3 {[%clk 0:01:11]}  Rxc5 {[%clk 0:02:05]} 23. Rd1 {[%clk 0:01:11]}  Rd5 {[%clk 0:02:05]} 24. Rcd2 {[%clk 0:01:11]}  Rb8 {[%clk 0:02:03]} 25. c4 {[%clk 0:00:59]}  Rxd2 {[%clk 0:01:51]} 26. Rxd2 {[%clk 0:01:00]}  Ne4 {[%clk 0:01:50]} 27. Re2 {[%clk 0:00:53]}  Nc5 {[%clk 0:01:46]} 28. b3 {[%clk 0:00:50]}  a5 {[%clk 0:01:46]} 29. Nd4 {[%clk 0:00:48]}  Rd8 {[%clk 0:01:40]} 30. Nf3 {[%clk 0:00:35]}  Rd1+ {[%clk 0:01:29]} 31. Re1 {[%clk 0:00:35]}  Rd3 {[%clk 0:01:29]} 32. Rb1 {[%clk 0:00:33]}  Ne4 {[%clk 0:01:21]} 33. Ne5 {[%clk 0:00:30]}  Rd2 {[%clk 0:01:19]} 34. Nxc6 {[%clk 0:00:29]}  Rxa2 {[%clk 0:01:13]} 35. b4 {[%clk 0:00:22]}  axb4 {[%clk 0:01:09]} 36. Nxb4 {[%clk 0:00:23]}  Rd2 {[%clk 0:01:07]} 37. f3 {[%clk 0:00:20]}  Nc3 {[%clk 0:01:00]} 38. Ra1 {[%clk 0:00:19]}  g6 {[%clk 0:00:53]} 39. Nc6 {[%clk 0:00:19]}  Rc2 {[%clk 0:00:48]} 40. Ne5 {[%clk 0:00:18]}  Ne2+ {[%clk 0:00:42]} 41. Kh1 {[%clk 0:00:17]}  Kg7 {[%clk 0:00:40]} 42. g3 {[%clk 0:00:15]}  Kf6 {[%clk 0:00:39]} 43. Ng4+ {[%clk 0:00:15]}  Kg7 {[%clk 0:00:36]} 44. Re1 {[%clk 0:00:15]}  f5 {[%clk 0:00:34]} 45. Ne5 {[%clk 0:00:15]}  f4 {[%clk 0:00:31]} 46. g4 {[%clk 0:00:13]}  Kf6 {[%clk 0:00:28]} 47. Nd3 {[%clk 0:00:12]}  g5 {[%clk 0:00:22]} 48. c5 {[%clk 0:00:11]}  Nd4 {[%clk 0:00:20]} 49. Rc1 {[%clk 0:00:10]}  Rd2 {[%clk 0:00:17]} 50. Nb4 {[%clk 0:00:07]}  Nxf3 {[%clk 0:00:16]} 51. Rc2 {[%clk 0:00:06]}  Rd1+ {[%clk 0:00:08]} 52. Kg2 {[%clk 0:00:06]}  Ne1+ {[%clk 0:00:08]} 53. Kf2 {[%clk 0:00:06]}  Nxc2 {[%clk 0:00:08]} 54. Ke2 {[%clk 0:00:06]}  Rc1 {[%clk 0:00:07]} 55. Nd3 {[%clk 0:00:06]}  Nd4+ {[%clk 0:00:07]} 56. Kd2 {[%clk 0:00:07]}  Rc4 {[%clk 0:00:07]} 57. h3 {[%clk 0:00:06]}  e5 {[%clk 0:00:07]} 58. Nf2 {[%clk 0:00:06]}  Ne6 {[%clk 0:00:07]} 59. Kd3 {[%clk 0:00:06]}  Rxc5 {[%clk 0:00:06]} 60. Ne4+ {[%clk 0:00:07]}  Kg6 {[%clk 0:00:06]} 61. Nxc5 {[%clk 0:00:05]}  Nxc5+ {[%clk 0:00:07]} 62. Kc4 {[%clk 0:00:06]}  f3 {[%clk 0:00:07]} 63. Kd5 {[%clk 0:00:07]}  f2 {[%clk 0:00:08]} 0-1


[Site "https://www.chess.com"]

[Event "Titled Tuesday Blitz May 03 Early 2022"]
[White "Li, Hui"]
[Black "Dilmukhametov, Artur"]
[WhiteFideId "15400310"]
[BlackFideId "24179922"]
[WhiteElo "1954"]
[BlackElo "2244"]
[Result "1-0"]
[Round "11"]
[TimeControl "180+1"]
[Date "2022.05.03"]
[WhiteClock "0:00:05"]
[BlackClock "0:00:01"]

1. e4 {[%clk 0:02:59]}  e6 {[%clk 0:02:52]} 2. d4 {[%clk 0:02:59]}  d5 {[%clk 0:02:48]} 3. Nd2 {[%clk 0:02:59]}  Nf6 {[%clk 0:02:44]} 4. e5 {[%clk 0:02:58]}  Nfd7 {[%clk 0:02:44]} 5. Bd3 {[%clk 0:02:59]}  c5 {[%clk 0:02:43]} 6. c3 {[%clk 0:03:00]}  Nc6 {[%clk 0:02:42]} 7. Ne2 {[%clk 0:03:00]}  Qb6 {[%clk 0:02:39]} 8. Nf3 {[%clk 0:02:59]}  Be7 {[%clk 0:02:36]} 9. O-O {[%clk 0:02:58]}  O-O {[%clk 0:02:35]} 10. a3 {[%clk 0:02:53]}  f6 {[%clk 0:02:31]} 11. exf6 {[%clk 0:02:45]}  Nxf6 {[%clk 0:02:28]} 12. b4 {[%clk 0:02:38]}  cxd4 {[%clk 0:02:28]} 13. cxd4 {[%clk 0:02:36]}  Bd6 {[%clk 0:02:16]} 14. Bf4 {[%clk 0:01:43]}  Bxf4 {[%clk 0:02:09]} 15. Nxf4 {[%clk 0:01:44]}  Kh8 {[%clk 0:01:53]} 16. Ne2 {[%clk 0:01:07]}  a6 {[%clk 0:01:26]} 17. Rc1 {[%clk 0:00:58]}  Bd7 {[%clk 0:01:04]} 18. Qd2 {[%clk 0:00:22]}  Rae8 {[%clk 0:00:53]} 19. Qb2 {[%clk 0:00:18]}  Ng4 {[%clk 0:00:41]} 20. Ng3 {[%clk 0:00:14]}  e5 {[%clk 0:00:34]} 21. dxe5 {[%clk 0:00:13]}  Ngxe5 {[%clk 0:00:29]} 22. Nxe5 {[%clk 0:00:13]}  Nxe5 {[%clk 0:00:26]} 23. Be2 {[%clk 0:00:14]}  Bg4 {[%clk 0:00:20]} 24. Bxg4 {[%clk 0:00:12]}  Nxg4 {[%clk 0:00:20]} 25. Qd2 {[%clk 0:00:10]}  Rf7 {[%clk 0:00:15]} 26. h3 {[%clk 0:00:10]}  Nh6 {[%clk 0:00:14]} 27. Qxd5 {[%clk 0:00:08]}  Ref8 {[%clk 0:00:12]} 28. Qc5 {[%clk 0:00:08]}  Qf6 {[%clk 0:00:12]} 29. Qc3 {[%clk 0:00:07]}  Qxc3 {[%clk 0:00:11]} 30. Rxc3 {[%clk 0:00:07]}  b5 {[%clk 0:00:11]} 31. Rc6 {[%clk 0:00:06]}  Rf6 {[%clk 0:00:11]} 32. Rxf6 {[%clk 0:00:05]}  Rxf6 {[%clk 0:00:11]} 33. Rc1 {[%clk 0:00:05]}  g6 {[%clk 0:00:10]} 34. f3 {[%clk 0:00:06]}  Kg7 {[%clk 0:00:10]} 35. Ne4 {[%clk 0:00:05]}  Re6 {[%clk 0:00:08]} 36. Rc7+ {[%clk 0:00:05]}  Kg8 {[%clk 0:00:07]} 37. Kf2 {[%clk 0:00:05]}  Nf7 {[%clk 0:00:06]} 38. Rc8+ {[%clk 0:00:03]}  Kg7 {[%clk 0:00:06]} 39. Rc7 {[%clk 0:00:04]}  h5 {[%clk 0:00:05]} 40. Ng5 {[%clk 0:00:02]}  Rf6 {[%clk 0:00:04]} 41. Nxf7 {[%clk 0:00:02]}  Rxf7 {[%clk 0:00:04]} 42. Rxf7+ {[%clk 0:00:03]}  Kxf7 {[%clk 0:00:04]} 43. Ke3 {[%clk 0:00:03]}  Ke6 {[%clk 0:00:05]} 44. g3 {[%clk 0:00:03]}  Ke5 {[%clk 0:00:05]} 45. f4+ {[%clk 0:00:03]}  Kf5 {[%clk 0:00:05]} 46. Kf3 {[%clk 0:00:04]}  g5 {[%clk 0:00:04]} 47. g4+ {[%clk 0:00:03]}  hxg4+ {[%clk 0:00:03]} 48. hxg4+ {[%clk 0:00:04]}  Kg6 {[%clk 0:00:02]} 49. f5+ {[%clk 0:00:04]}  Kf6 {[%clk 0:00:02]} 50. Ke4 {[%clk 0:00:05]}  Kg7 {[%clk 0:00:01]} 51. Ke5 {[%clk 0:00:05]} 1-0


[Site "https://www.chess.com"]

[Event "Titled Tuesday Blitz May 03 Early 2022"]
[White "Lorparizangeneh, Shahin"]
[Black "Kozak, Antoni"]
[WhiteFideId "12521604"]
[BlackFideId "21832030"]
[WhiteElo "2525"]
[BlackElo "2236"]
[Result "1-0"]
[Round "11"]
[TimeControl "180+1"]
[Date "2022.05.03"]
[WhiteClock "0:00:14"]
[BlackClock "0:00:01"]

1. e4 {[%clk 0:03:00]}  c6 {[%clk 0:02:58]} 2. d4 {[%clk 0:02:59]}  d5 {[%clk 0:02:58]} 3. exd5 {[%clk 0:02:59]}  cxd5 {[%clk 0:02:59]} 4. Nf3 {[%clk 0:02:59]}  Nc6 {[%clk 0:02:57]} 5. h3 {[%clk 0:02:59]}  Bf5 {[%clk 0:02:55]} 6. c4 {[%clk 0:02:51]}  e6 {[%clk 0:02:55]} 7. Nc3 {[%clk 0:02:52]}  Nf6 {[%clk 0:02:52]} 8. Qb3 {[%clk 0:02:46]}  Bb4 {[%clk 0:02:37]} 9. c5 {[%clk 0:02:33]}  O-O {[%clk 0:02:34]} 10. Bb5 {[%clk 0:02:33]}  Ba5 {[%clk 0:02:23]} 11. O-O {[%clk 0:02:18]}  Bc7 {[%clk 0:02:16]} 12. Qa4 {[%clk 0:02:11]}  Ne7 {[%clk 0:02:12]} 13. Re1 {[%clk 0:01:55]}  Ne4 {[%clk 0:02:06]} 14. Nh4 {[%clk 0:01:47]}  Nxc3 {[%clk 0:02:05]} 15. bxc3 {[%clk 0:01:48]}  a6 {[%clk 0:01:55]} 16. Nxf5 {[%clk 0:01:38]}  Nxf5 {[%clk 0:01:47]} 17. Bd3 {[%clk 0:01:38]}  Ne7 {[%clk 0:01:40]} 18. Bg5 {[%clk 0:01:34]}  h6 {[%clk 0:01:28]} 19. Bd2 {[%clk 0:01:24]}  b6 {[%clk 0:01:27]} 20. cxb6 {[%clk 0:01:23]}  Bxb6 {[%clk 0:01:26]} 21. Rab1 {[%clk 0:00:59]}  Nc8 {[%clk 0:01:20]} 22. Qd1 {[%clk 0:00:46]}  Bc7 {[%clk 0:01:13]} 23. Qg4 {[%clk 0:00:45]}  Kh8 {[%clk 0:01:12]} 24. Qh5 {[%clk 0:00:41]}  Kg8 {[%clk 0:00:49]} 25. Bxh6 {[%clk 0:00:30]}  gxh6 {[%clk 0:00:14]} 26. Qxh6 {[%clk 0:00:31]}  f5 {[%clk 0:00:13]} 27. Qg6+ {[%clk 0:00:32]}  Kh8 {[%clk 0:00:12]} 28. Qh6+ {[%clk 0:00:32]}  Kg8 {[%clk 0:00:13]} 29. Rxe6 {[%clk 0:00:33]}  Ne7 {[%clk 0:00:12]} 30. Qg5+ {[%clk 0:00:33]}  Kf7 {[%clk 0:00:12]} 31. Rbe1 {[%clk 0:00:30]}  Bd6 {[%clk 0:00:13]} 32. Qh5+ {[%clk 0:00:28]}  Kg7 {[%clk 0:00:13]} 33. Qh6+ {[%clk 0:00:19]}  Kf7 {[%clk 0:00:13]} 34. Bxf5 {[%clk 0:00:19]}  Rg8 {[%clk 0:00:08]} 35. Rxd6 {[%clk 0:00:15]}  Nxf5 {[%clk 0:00:07]} 36. Qh5+ {[%clk 0:00:15]}  Kg7 {[%clk 0:00:01]} 37. Rxd8 {[%clk 0:00:14]} 1-0


[Site "https://www.chess.com"]

[Event "Titled Tuesday Blitz May 03 Early 2022"]
[White "Manukian, Artak"]
[Black "Nozdrachev, Leonid"]
[WhiteFideId "13301373"]
[BlackFideId "24113433"]
[WhiteElo "2361"]
[BlackElo "2242"]
[Result "1-0"]
[Round "11"]
[TimeControl "180+1"]
[Date "2022.05.03"]
[WhiteClock "0:00:15"]
[BlackClock "0:01:13"]

1. e4 {[%clk 0:02:59]}  d6 {[%clk 0:02:59]} 2. d4 {[%clk 0:02:59]}  Nf6 {[%clk 0:02:59]} 3. f3 {[%clk 0:02:59]}  e5 {[%clk 0:03:00]} 4. d5 {[%clk 0:02:58]}  Nxe4 {[%clk 0:02:58]} 5. fxe4 {[%clk 0:02:58]}  Qh4+ {[%clk 0:02:58]} 6. Kd2 {[%clk 0:02:58]}  Qxe4 {[%clk 0:02:58]} 7. Nc3 {[%clk 0:02:49]}  Qg6 {[%clk 0:02:57]} 8. Nf3 {[%clk 0:02:40]}  Be7 {[%clk 0:02:56]} 9. Qe2 {[%clk 0:02:31]}  Bg4 {[%clk 0:02:52]} 10. h3 {[%clk 0:02:27]}  Bf5 {[%clk 0:02:52]} 11. Kd1 {[%clk 0:02:23]}  h5 {[%clk 0:02:51]} 12. Qb5+ {[%clk 0:02:09]}  Nd7 {[%clk 0:02:49]} 13. Qxb7 {[%clk 0:01:55]}  Rb8 {[%clk 0:02:46]} 14. Qxc7 {[%clk 0:01:55]}  O-O {[%clk 0:02:46]} 15. Bd3 {[%clk 0:01:44]}  Bxd3 {[%clk 0:02:41]} 16. cxd3 {[%clk 0:01:38]}  Qxg2 {[%clk 0:02:41]} 17. Qxd7 {[%clk 0:01:33]}  Qxf3+ {[%clk 0:02:40]} 18. Kc2 {[%clk 0:01:32]}  Qxh1 {[%clk 0:02:27]} 19. Qxe7 {[%clk 0:01:32]}  Qg2+ {[%clk 0:02:25]} 20. Kb1 {[%clk 0:01:26]}  Qxh3 {[%clk 0:02:22]} 21. a4 {[%clk 0:01:15]}  Qxd3+ {[%clk 0:02:21]} 22. Ka2 {[%clk 0:01:15]}  Qc4+ {[%clk 0:02:20]} 23. Kb1 {[%clk 0:01:10]}  Qxc3 {[%clk 0:02:20]} 24. Qxd6 {[%clk 0:01:10]}  Qd3+ {[%clk 0:02:18]} 25. Ka2 {[%clk 0:01:10]}  Qb3+ {[%clk 0:02:19]} 26. Kb1 {[%clk 0:01:10]}  e4 {[%clk 0:02:13]} 27. Ra3 {[%clk 0:01:08]}  Qb6 {[%clk 0:02:12]} 28. Qe5 {[%clk 0:01:03]}  Rfe8 {[%clk 0:02:11]} 29. Qxh5 {[%clk 0:01:03]}  e3 {[%clk 0:02:11]} 30. Qe2 {[%clk 0:00:56]}  Qg6+ {[%clk 0:02:08]} 31. Ka2 {[%clk 0:00:53]}  Qd6 {[%clk 0:02:07]} 32. Rd3 {[%clk 0:00:50]}  Qa6 {[%clk 0:02:02]} 33. Qc2 {[%clk 0:00:41]}  Qxd3 {[%clk 0:01:58]} 34. Qxd3 {[%clk 0:00:40]}  e2 {[%clk 0:01:59]} 35. Bd2 {[%clk 0:00:40]}  e1=Q {[%clk 0:01:58]} 36. Bxe1 {[%clk 0:00:40]}  Rxe1 {[%clk 0:01:57]} 37. Qd4 {[%clk 0:00:24]}  Re7 {[%clk 0:01:56]} 38. b4 {[%clk 0:00:22]}  Rd7 {[%clk 0:01:46]} 39. Kb3 {[%clk 0:00:21]}  a5 {[%clk 0:01:38]} 40. b5 {[%clk 0:00:21]}  Rbd8 {[%clk 0:01:39]} 41. Kc4 {[%clk 0:00:20]}  Rc8+ {[%clk 0:01:37]} 42. Kd3 {[%clk 0:00:20]}  Rc1 {[%clk 0:01:36]} 43. Kd2 {[%clk 0:00:20]}  Rb1 {[%clk 0:01:33]} 44. Qc5 {[%clk 0:00:17]}  Rd8 {[%clk 0:01:28]} 45. d6 {[%clk 0:00:16]}  Rb4 {[%clk 0:01:25]} 46. b6 {[%clk 0:00:16]}  Rb8 {[%clk 0:01:22]} 47. d7 {[%clk 0:00:14]}  R4xb6 {[%clk 0:01:20]} 48. Qxb6 {[%clk 0:00:14]}  Rxb6 {[%clk 0:01:13]} 49. d8=Q+ {[%clk 0:00:15]} 1-0


[Site "https://www.chess.com"]

[Event "Titled Tuesday Blitz May 03 Early 2022"]
[White "Martin Carmona, Gaston Manuel"]
[Black "Lauridsen, Jesper Morch"]
[WhiteFideId "22284567"]
[BlackFideId "1401890"]
[WhiteElo "2146"]
[BlackElo "2248"]
[Result "1-0"]
[Round "11"]
[TimeControl "180+1"]
[Date "2022.05.03"]
[WhiteClock "0:00:34"]
[BlackClock "0:00:02"]

1. d4 {[%clk 0:03:00]}  Nf6 {[%clk 0:02:58]} 2. c4 {[%clk 0:03:01]}  c5 {[%clk 0:02:59]} 3. d5 {[%clk 0:03:01]}  e6 {[%clk 0:02:59]} 4. Nc3 {[%clk 0:03:00]}  exd5 {[%clk 0:02:59]} 5. cxd5 {[%clk 0:03:01]}  d6 {[%clk 0:03:00]} 6. e4 {[%clk 0:03:02]}  g6 {[%clk 0:03:00]} 7. f4 {[%clk 0:03:03]}  Bg7 {[%clk 0:02:56]} 8. Bb5+ {[%clk 0:03:03]}  Nfd7 {[%clk 0:02:56]} 9. a4 {[%clk 0:03:03]}  Qh4+ {[%clk 0:02:56]} 10. g3 {[%clk 0:03:02]}  Qd8 {[%clk 0:02:57]} 11. Nf3 {[%clk 0:03:01]}  O-O {[%clk 0:02:56]} 12. O-O {[%clk 0:03:01]}  Nf6 {[%clk 0:02:55]} 13. Kg2 {[%clk 0:03:01]}  a6 {[%clk 0:02:51]} 14. Be2 {[%clk 0:03:00]}  Qd7 {[%clk 0:02:52]} 15. e5 {[%clk 0:02:52]}  Qh3+ {[%clk 0:02:50]} 16. Kg1 {[%clk 0:02:50]}  Ng4 {[%clk 0:02:50]} 17. Ne4 {[%clk 0:02:34]}  dxe5 {[%clk 0:02:01]} 18. Neg5 {[%clk 0:02:34]}  Qh5 {[%clk 0:01:59]} 19. h3 {[%clk 0:02:33]}  exf4 {[%clk 0:01:34]} 20. hxg4 {[%clk 0:02:32]}  Bxg4 {[%clk 0:01:34]} 21. Bxf4 {[%clk 0:02:25]}  h6 {[%clk 0:01:13]} 22. Ne4 {[%clk 0:02:25]}  Re8 {[%clk 0:01:13]} 23. Nd6 {[%clk 0:02:12]}  Rxe2 {[%clk 0:01:07]} 24. Qxe2 {[%clk 0:02:12]}  Bd4+ {[%clk 0:01:07]} 25. Be3 {[%clk 0:02:05]}  Nd7 {[%clk 0:00:24]} 26. Bxd4 {[%clk 0:02:03]}  cxd4 {[%clk 0:00:25]} 27. Rad1 {[%clk 0:01:59]}  Bh3 {[%clk 0:00:13]} 28. Nxd4 {[%clk 0:01:53]}  Qxd5 {[%clk 0:00:11]} 29. Qf3 {[%clk 0:00:59]}  Qxd6 {[%clk 0:00:08]} 30. Qxf7+ {[%clk 0:00:59]}  Kh8 {[%clk 0:00:08]} 31. Qf4 {[%clk 0:00:47]}  Qd5 {[%clk 0:00:07]} 32. Rf2 {[%clk 0:00:43]}  g5 {[%clk 0:00:06]} 33. Qf3 {[%clk 0:00:41]}  Qxf3 {[%clk 0:00:04]} 34. Nxf3 {[%clk 0:00:42]}  Nc5 {[%clk 0:00:04]} 35. Ne5 {[%clk 0:00:35]}  Nxa4 {[%clk 0:00:03]} 36. Rf7 {[%clk 0:00:34]}  Be6 {[%clk 0:00:03]} 37. Re7 {[%clk 0:00:34]}  Bb3 {[%clk 0:00:01]} 38. Rdd7 {[%clk 0:00:33]}  Rf8 {[%clk 0:00:02]} 39. Rh7+ {[%clk 0:00:33]}  Kg8 {[%clk 0:00:02]} 40. Rdg7# {[%clk 0:00:34]} 1-0


[Site "https://www.chess.com"]